Cogmind - Beta 16 @@@ ROGUE MODE // 2025.11.02 @ 20:19:13 Player: QXander Result: Destroyed by G-47 Trooper with Particle Gun Performance ------------- Evolutions (2) 1000 Regions Visited (7) 1400 Robots Destroyed (103) 515 Value Destroyed (2320) 2320 Prototype IDs (27) 540 Alien Tech Used (0) 0 Bonus (367) 367 TOTAL SCORE: 6142 Bonus ------- Follower Combat Kills 67 Aligned with FarCom 300 Cogmind --------- Core Integrity 0/550 Matter 290/300 Energy 80/100 System Corruption 0% Temperature Cool (9) Movement Walking (180) Ox1 Location -8/Materials Parts ------- > --- POWER (1) -------- (None) > --- PROPULSION (4) --- VSS Leg > --- UTILITY (4) ------ Medium Storage Unit Hardened Medium Armor Plating > --- WEAPON (2) ------- Katana > --- INVENTORY (10) --- Improved Ion Engine Improved Heat Sink System Restoration Module YOLO Cannon Minigun Katana Katana Katana Peak State ------------ > --- POWER ------------ Nuclear Core > --- PROPULSION ------- Aluminum Leg Improved Aluminum Leg Carbon-fiber Leg VSS Leg > --- UTILITY ---------- Medium Storage Unit Melee Analysis Suite Melee Analysis Suite Hardened Medium Armor Plating > --- WEAPON ----------- Gauss Rifle Katana > --- INVENTORY -------- Improved Ion Engine Light Deuterium Engine Improved Heat Sink Melee Analysis Suite YOLO Cannon Minigun Katana Katana Katana [Rating: 33] Favorites ----------- Power Improved Ion Engine Engine Improved Ion Engine Power Core Light Nuclear Core Propulsion Wheel Treads Light Treads Leg Carbon-fiber Leg Wheel Wheel Flight Unit Flight Unit Utility Medium Storage Unit Device Sensor Array Storage Medium Storage Unit Processor Melee Analysis Suite Protection Medium Armor Plating Weapon Autogun Ballistic Gun Autogun Launcher Mini Grenade Launcher Special Weapon Mining Laser Impact Weapon Mace Slashing Weapon Katana Build | -11 -10 -10 -9 -9 -9 -8 -8 ------- Run | Yrd Mat Min Mat Min Exi Min Mat Slots Evolved 4 | . . . 2 . . . 2 Power . | . . . . . . . . Propulsion 2 | . . . 1 . . . 1 Utility 2 | . . . 1 . . . 1 Weapon . | . . . . . . . . Parts Attached 81 | 7 3 4 28 5 . 2 32 Power 12 | 1 1 . 7 . . 1 2 Engine 9 | 1 . . 6 . . 1 1 Core 3 | . 1 . 1 . . . 1 Reactor . | . . . . . . . . Propulsion 30 | 2 . 3 11 3 . . 11 Treads 1 | . . . 1 . . . . Leg 8 | . . . 2 . . . 6 Wheel 19 | 2 . 1 8 3 . . 5 Hover . | . . . . . . . . Flight 2 | . . 2 . . . . . Utility 23 | 2 1 1 4 . . 1 14 Device 3 | 1 . 1 1 . . . . Storage 2 | 1 . . 1 . . . . Processor 10 | . 1 . 2 . . . 7 Hackware . | . . . . . . . . Protection 8 | . . . . . . 1 7 Artifact . | . . . . . . . . Weapon 16 | 2 1 . 6 2 . . 5 Energy Gun . | . . . . . . . . Energy Cannon . | . . . . . . . . Ballistic Gun 8 | 2 . . 4 . . . 2 Ballistic Cannon . | . . . . . . . . Launcher 2 | . . . . 2 . . . Special Weapon 2 | . 1 . . . . . 1 Impact Weapon 1 | . . . 1 . . . . Slashing Weapon 3 | . . . 1 . . . 2 Piercing Weapon . | . . . . . . . . Special Melee Weapon . | . . . . . . . . Unidentified Prototypes . | . . . . . . . . Parts Lost 27 | . . . 8 1 . . 18 Power 4 | . . . 3 . . . 1 Propulsion 14 | . . . 4 1 . . 9 Utility 8 | . . . 1 . . . 7 Weapon 1 | . . . . . . . 1 Highest Loss Streak 10 | . . . 3 1 . . 10 To Critical Strikes . | . . . . . . . . Average Backups 6 | 1 5 4 4 7 8 8 7 Power 1 | . 1 1 1 1 1 1 1 Propulsion 1 | . 1 . . 2 3 3 . Utility 2 | . 2 2 2 3 3 2 1 Weapon 2 | . 1 1 . . 1 2 4 Tool/Special . | . . . . . . . . Unused Backups 10 | . . . . . 1 . 9 Power 1 | . . . . . . . 1 Propulsion . | . . . . . . . . Utility 4 | . . . . . . . 4 Weapon 5 | . . . . . 1 . 4 Tool/Special . | . . . . . . . . Average Slot Usage (%) 94 | . 100 95 87 99 100 100 95 Engine 7 | . 11 . 7 11 11 11 8 Core 3 | . 2 14 2 . . . . Leg 7 | . . . . . . . 18 Wheel 22 | . 28 27 22 32 33 33 15 Device 7 | . 2 13 11 11 11 11 1 Storage 10 | . 14 13 11 11 11 11 9 Processor 10 | . 11 . 7 11 11 7 15 Protection 3 | . . . . . . 3 8 Ballistic Gun 12 | . 28 9 19 11 11 11 8 Launcher 1 | . . . . 3 11 11 1 Special Weapon 2 | . . 13 . . . . . Slashing Weapon 3 | . . . . 7 . . 7 Peak Build Rating 33 | 9 10 11 14 14 15 15 33 Average Rating 17 | 7 8 10 10 13 13 14 26 On Entrance 10 | . 9 10 11 14 13 15 15 Avg Prop Armor Cover (%) 3 | . . . 5 . . . 2 Naked Turns . | . . . . . . . . Heaviest Build 31 | 12 13 14 24 24 22 29 31 Greatest Support 53 | 20 20 20 36 42 30 30 53 Greatest Overweight (x) 3 | . . 3 2 . . . 1 Average Overweight (x) . | . . . . . . . . Largest Inventory Capacity 10 | 8 8 8 10 10 10 10 10 Average Capacity 9 | 7 8 7 9 10 10 10 10 Most Carried 10 | 4 7 7 10 10 10 10 10 Average Carried 6 | 1 5 5 4 7 8 9 8 Final Capacity 10 | 8 8 8 10 10 10 10 10 Final Carried 10 | 4 6 4 9 8 10 8 9 Class Distribution -------------------- 68% | Scavenger-Mutant 29% | Mutant Dominant Class ---------------- Mutant | -10/Materials Mutant | -10/Mines Mutant | -9/Materials Scavenger-Mutant | -9/Mines Scavenger-Mutant | -9/Exiles Scavenger-Skirmisher | -8/Mines Scavenger-Mutant | -8/Materials Resources | -11 -10 -10 -9 -9 -9 -8 -8 ----------- Run | Yrd Mat Min Mat Min Exi Min Mat Matter Collected 2030 | 287 87 131 656 279 . . 590 Remotely . | . . . . . . . . Salvage Created 3286 | 109 115 10 1158 403 . . 1491 Parts 215 | 7 9 6 62 34 . . 97 Haulers Intercepted 5 | . . . 2 . . . 3 Recyclers Shooed 5 | . . . 1 1 . . 3 Parts Field Recycled . | . . . . . . . . Retrieved Matter . | . . . . . . . . Parts Self-Destructed . | . . . . . . . . Prevented . | . . . . . . . . Parts Restored . | . . . . . . . . Kills | -11 -10 -10 -9 -9 -9 -8 -8 ------- Run | Yrd Mat Min Mat Min Exi Min Mat Combat Hostiles Destroyed 58 | . 2 1 20 12 . . 23 Melee 24 | . . . 2 3 . . 19 Guns 23 | . 2 . 16 4 . . 1 Cannons 1 | . . 1 . . . . . AOE 8 | . . . . 5 . . 3 Classes Destroyed 14 | 2 2 2 4 . . . 4 Worker 14 | . . . 7 2 . . 5 Builder 6 | . . 1 3 . . . 2 Tunneler 10 | 2 . 2 4 . . . 2 Hauler 5 | . . . 2 . . . 3 Recycler 6 | 1 . . . 2 . . 3 Operator 1 | . . . . . . . 1 Watcher 3 | . 1 . 1 . . . 1 Swarmer 16 | . . 1 4 7 . . 4 Cutter 2 | . . . . . . . 2 Grunt 21 | . 2 . 8 5 . . 6 Duelist 1 | . . . 1 . . . . Sentry 13 | . . . 7 . . . 6 Specialist 4 | . . . . . . . 4 Hunter 1 | . . . . . . . 1 Best Kill Streak 6 | 1 2 1 6 4 . . 5 Combat Bots Only 4 | . 2 1 4 3 . . 4 Max Kills in Single Turn 2 | 1 1 1 1 2 . . 2 Gunslinging . | . . . . . . . . Exploded 2 | . . . . 2 . . 1 Melee 1 | . . . 1 1 . . 1 Uniques/NPCs Destroyed . | . . . . . . . . Combat | -11 -10 -10 -9 -9 -9 -8 -8 -------- Run | Yrd Mat Min Mat Min Exi Min Mat Hostile Shots Fired 340 | . 9 9 104 62 . . 156 Missed 101 | . 2 5 30 19 . . 45 Hits 239 | . 7 4 74 43 . . 111 Melee 6 | . . . 4 . . . 2 Projectile 233 | . 7 4 70 43 . . 109 AOE 2 | . . . . . . . 2 Critical Strikes 10 | . . . 3 . . . 7 Damage Taken 3912 | . 88 48 1058 453 . . 2265 Core 960 | . 24 . 265 111 . . 560 Absorbed by Shields . | . . . . . . . . Regen/Repaired (Parts) 14 | . . . 14 . . . . Core Remaining (%) 65 | 100 . 90 . . . 6 . Volleys Fired 163 | 12 9 28 67 25 . . 22 Largest 2 | 2 2 2 2 2 . . 2 Hottest 120 | 40 40 120 46 53 . . 100 Shots Fired 269 | 24 18 37 132 28 . . 30 Gun 237 | 24 18 17 132 25 . . 21 Cannon . | . . . . . . . . Launcher 11 | . . . . 3 . . 8 Special 21 | . . 20 . . . . 1 Kinetic 237 | 24 18 17 132 25 . . 21 Thermal 21 | . . 20 . . . . 1 Explosive 11 | . . . . 3 . . 8 Electromagnetic . | . . . . . . . . Robot Hit Streak 15 | 7 7 7 10 15 . . 5 Robot Miss Streak 3 | 3 1 1 3 2 . . 3 Penetration Max . | . . . . . . . . Secondary Targets 3 | . . . 3 . . . . Max Gunslinging Chain 1 | . . . 1 . . . . Shots Hit Robots 282 | 13 14 13 114 33 . . 95 Core Hits 123 | 4 7 4 44 17 . . 47 Critical Kills 1 | . . . 1 . . . . Critical Parts Destroyed 4 | . . . 4 . . . . Critical Strikes 14 | . . . 5 . . . 9 Smash 5 | . . . 5 . . . . Sever 9 | . . . . . . . 9 Melee Attacks 137 | . . . 31 13 . . 93 Impact 31 | . . . 31 . . . . Slashing 106 | . . . . 13 . . 93 Piercing . | . . . . . . . . Sneak Attacks 30 | . . . 7 4 . . 19 Combat Hostiles 1 | . . . . . . . 1 Follow-up Attacks . | . . . . . . . . Damage Inflicted 7747 | 135 144 238 2223 1249 . . 3758 Guns 2104 | 135 144 135 1166 282 . . 242 Cannons . | . . . . . . . . Explosions 890 | . . . . 454 . . 436 Melee 4650 | . . . 1057 513 . . 3080 Ramming 7 | . . 7 . . . . . Kinetic 2104 | 135 144 135 1166 282 . . 242 Thermal 243 | . . 96 . 147 . . . Explosive 743 | . . . . 307 . . 436 Electromagnetic . | . . . . . . . . Impact 1057 | . . . 1057 . . . . Slashing 3593 | . . . . 513 . . 3080 Piercing . | . . . . . . . . Highest Corruption . | . . . . . . . . Average Corruption . | . . . . . . . . Corruption Purged . | . . . . . . . . Corruption Blocked . | . . . . . . . . Overload Shots . | . . . . . . . . Overflow Damage 725 | . . 19 425 67 . . 214 Projectiles 19 | . . 19 . . . . . Explosions 39 | . . . . 26 . . 13 Melee 667 | . . . 425 41 . . 201 Knockbacks 5 | . . . 5 . . . . Impact 4 | . . . 4 . . . . Kinetic . | . . . . . . . . Secondary 1 | . . . 1 . . . . Self-Inflicted Damage 34 | . . 3 . . . . 31 Shots 1 | . . . . . . . 1 Rammed 1 | . . 1 . . . . . Targets Rammed 1 | . . 1 . . . . . Kicked . | . . . . . . . . Crushed . | . . . . . . . . Highest Temperature 94 | . 18 94 22 14 . . 31 Average Temperature 19 | . 9 29 5 4 . . 12 Received Heat Transfer 990 | . 54 18 345 177 . . 396 Siege Activations . | . . . . . . . . Martial Activations . | . . . . . . . . Shielding Activations . | . . . . . . . . Robots Disrupted . | . . . . . . . . Combat Hostiles . | . . . . . . . . Robots Corrupted 7 | . . . 7 . . . . Combat Hostiles 2 | . . . 2 . . . . Parts Fried 16 | . . . 16 . . . . Impact Corruptions 17 | . . . 17 . . . . Robots Melted . | . . . . . . . . Combat Hostiles . | . . . . . . . . Parts Melted . | . . . . . . . . Heat Transferred 350 | . . 200 . 150 . . . Parts Sabotaged . | . . . . . . . . Parts Stolen . | . . . . . . . . Parts Stripped . | . . . . . . . . Power Chain Reactions . | . . . . . . . . Alert | -11 -10 -10 -9 -9 -9 -8 -8 ------- Run | Yrd Mat Min Mat Min Exi Min Mat Maximum Alert Level 1 | . . . . 1 . . 1 Low Security (%) 98 | 100 100 100 100 74 . 100 99 Level 1 1 | . . . . 25 . . . Level 2 . | . . . . . . . . Level 3 . | . . . . . . . . Level 4 . | . . . . . . . . Level 5 . | . . . . . . . . High Security . | . . . . . . . . Max Security . | . . . . . . . . Peak Influence 366 | 5 40 65 161 366 . . 206 Initial 47 | . . 7 . 47 . . . Average 59 | 1 9 15 82 153 . . 62 Influence Increases 2251 | 15 57 198 650 489 . . 842 Destroy 0b10 Robot/C 1220 | . 40 80 400 240 . . 460 Destroy 0b10 Robot/NC 225 | 15 5 15 85 20 . . 85 Destroy Leader 326 | . 12 20 126 30 . . 138 Allied During Kill 16 | . . 16 . . . . . Successful Hack 51 | . . . 37 . . . 14 Disable Machine 165 | . . 45 . 105 . . 15 Destroy Structure 83 | . . 7 2 34 . . 40 Lose Combat Pursuer 165 | . . 15 . 60 . . 90 Influence Decreases 2121 | 15 37 218 528 265 346 . 712 Entered New Map 434 | . . 13 . 75 346 . . Time Decay 1417 | 15 37 205 448 180 . . 532 Lost Part 270 | . . . 80 10 . . 180 Squads Dispatched 8 | . . . 1 . . . 7 Investigation 2 | . . . 1 . . . 1 Extermination . | . . . . . . . . Reinforcement 5 | . . . . . . . 5 Assault . | . . . . . . . . Garrison 1 | . . . . . . . 1 Intercept . | . . . . . . . . Searches Triggered . | . . . . . . . . Construction Impeded . | . . . . . . . . Haulers Reinforced . | . . . . . . . . Active Scanning Responses . | . . . . . . . . Cargo Convoy Interrupts . | . . . . . . . . Stealth | -11 -10 -10 -9 -9 -9 -8 -8 --------- Run | Yrd Mat Min Mat Min Exi Min Mat Distress Signals 4 | . . . 1 . . . 3 Communications Jammed . | . . . . . . . . Distress Signals . | . . . . . . . . Times Spotted 90 | . 3 4 26 16 . . 41 Peak Tracking Total 7 | . 2 3 4 4 . . 7 Tactical Retreats 5 | . . 1 . 2 . . 2 Traps | -11 -10 -10 -9 -9 -9 -8 -8 ------- Run | Yrd Mat Min Mat Min Exi Min Mat Traps Triggered 1 | . . . 1 . . . . Indirectly . | . . . . . . . . Trap Hack Attempts . | . . . . . . . . Triggered . | . . . . . . . . Disarmed . | . . . . . . . . Reprogrammed . | . . . . . . . . Reused . | . . . . . . . . Traps Extracted . | . . . . . . . . Installed . | . . . . . . . . Triggered . | . . . . . . . . Machines | -11 -10 -10 -9 -9 -9 -8 -8 ---------- Run | Yrd Mat Min Mat Min Exi Min Mat Machines Disabled 11 | . . 3 . 7 . . 1 Max in Single Turn 7 | . . 1 . 7 . . 1 Machines Repaired . | . . . . . . . . Machines Dismantled . | . . . . . . . . Machines Sabotaged . | . . . . . . . . Overloaded Fab Kills . | . . . . . . . . Hacking | -11 -10 -10 -9 -9 -9 -8 -8 --------- Run | Yrd Mat Min Mat Min Exi Min Mat Machines Accessed 27 | . 2 1 9 1 2 . 12 Terminals 21 | . 2 1 7 1 . . 10 Fabricators . | . . . . . . . . Repair Stations 1 | . . . 1 . . . . Recycling Units 2 | . . . . . . . 2 Scanalyzers 1 | . . . 1 . . . . Garrison Access . | . . . . . . . . Total Hacks 63 | . 5 1 25 3 2 . 27 Successful 35 | . 3 1 16 1 2 . 12 Failed 28 | . 2 . 9 2 . . 15 Catastrophic 6 | . . . 2 . . . 4 Database Lockouts . | . . . . . . . . Manual 1 | . . . . . 1 . . Terminals 52 | . 5 1 19 3 . . 24 Fabricators . | . . . . . . . . Repair Stations 2 | . . . 2 . . . . Recycling Units 3 | . . . . . . . 3 Scanalyzers 4 | . . . 4 . . . . Garrison Access . | . . . . . . . . Terminal Hacks 28 | . 3 1 10 1 2 . 11 Record 2 | . . . . . 1 . 1 Prototype ID Bank 2 | . 1 . . . . . 1 Level Access Points 1 | . . . . . . . 1 Branch Access Points 2 | . . . 1 . . . 1 Emergency Access Points 3 | . . . 2 . . . 1 Alert Level 1 | . . . 1 . . . . Locate Traps 1 | . . . . . . . 1 Dispatch Records 3 | . 1 . 1 1 . . . Maintenance Status 1 | . . . . . . . 1 Surveillance Status 1 | . . . 1 . . . . Reinforcement Status 1 | . . . 1 . . . . Hauler Manifests 1 | . . . . . . . 1 Registered Components 2 | . . . 1 . . . 1 Zone Layout 6 | . 1 1 2 . . . 2 Proto ID Catalog 1 | . . . . . 1 . . Fabricator Hacks . | . . . . . . . . Repair Station Hacks 2 | . . . 2 . . . . Scan Component 1 | . . . 1 . . . . Repair 1 | . . . 1 . . . . Recycling Unit Hacks 1 | . . . . . . . 1 Retrieve Components 1 | . . . . . . . 1 Scanalyzer 4 | . . . 4 . . . . Retrieve Study 4 | . . . 4 . . . . Garrison Access Hacks . | . . . . . . . . Unauthorized Hacks . | . . . . . . . . Terminals . | . . . . . . . . Fabricators . | . . . . . . . . Repair Stations . | . . . . . . . . Recycling Units . | . . . . . . . . Scanalyzers . | . . . . . . . . Garrison Access . | . . . . . . . . Data Cores Recovered . | . . . . . . . . Used . | . . . . . . . . Hacking Detections 16 | . 1 . 5 1 . . 9 Full Trace Events 3 | . . . 2 . . . 1 Feedback Events . | . . . . . . . . Feedback Blocked . | . . . . . . . . Robot Schematics Acquired . | . . . . . . . . Robots Built . | . . . . . . . . Authchips . | . . . . . . . . Time . | . . . . . . . . Total Robot Build Rating . | . . . . . . . . Part Schematics Acquired . | . . . . . . . . Parts Built . | . . . . . . . . Authchips . | . . . . . . . . Time . | . . . . . . . . Total Part Build Rating . | . . . . . . . . Part Studies Acquired 3 | . . . 3 . . . . Parts Repaired 1 | . . . 1 . . . . Time 26 | . . . 26 . . . . Parts Recycled . | . . . . . . . . Recycled Matter . | . . . . . . . . Retrieved Matter . | . . . . . . . . Retrieved Components 9 | . . . . . . . 9 Parts Scanalyzed . | . . . . . . . . Part Schematics Acquired . | . . . . . . . . Parts Damaged . | . . . . . . . . Bothacking | -11 -10 -10 -9 -9 -9 -8 -8 ------------ Run | Yrd Mat Min Mat Min Exi Min Mat Used RIF Installer . | . . . . . . . . Robots Hacked . | . . . . . . . . Non-combat . | . . . . . . . . Combat . | . . . . . . . . Robot Hacks Applied . | . . . . . . . . Relay Couplers Released . | . . . . . . . . Fabnet Peak Effective % . | . . . . . . . . Robots Rewired . | . . . . . . . . Allies Hacked . | . . . . . . . . Hacks Repelled . | . . . . . . . . Allies | -11 -10 -10 -9 -9 -9 -8 -8 -------- Run | Yrd Mat Min Mat Min Exi Min Mat Total Allies 3 | . . 3 . . . . . Largest Group 3 | . . 3 . . . . . Highest-Rated Group 40 | . . 40 . . . . . Highest-Rated Ally 16 | . . 16 . . . . . Total Orders . | . . . . . . . . Ally Attacks 8 | . . 8 . . . . . Total Damage 82 | . . 82 . . . . . Kills 3 | . . 3 . . . . . Allies Corrupted . | . . . . . . . . Allies Melted . | . . . . . . . . Intel | -11 -10 -10 -9 -9 -9 -8 -8 ------- Run | Yrd Mat Min Mat Min Exi Min Mat Active Infowar (turns) 3617 | 91 188 877 1099 368 454 154 386 Optics 181 | . 163 18 . . . . . Sensors 1776 | . . 15 835 368 454 104 . Terrain 1122 | 91 25 859 147 . . . . Seismic 720 | . . . 284 . . 50 386 T.N.C. 100 | . . . 100 . . . . Robot Analysis Total . | . . . . . . . . Derelict Logs Recovered 3 | . . 2 . 1 . . . Drone Launches . | . . . . . . . . Drone Recoveries . | . . . . . . . . Exploration | -11 -10 -10 -9 -9 -9 -8 -8 ------------- Run | Yrd Mat Min Mat Min Exi Min Mat Turns Passed 5499 | 157 188 878 1160 368 454 158 2136 Spaces Moved 4996 | 139 188 942 856 369 644 219 1639 Core 7 | 7 . . . . . . . Treads 102 | . . . 102 . . . . Legs 833 | . . . 21 . . . 812 Wheels 4044 | 132 188 932 733 369 644 219 827 Hover . | . . . . . . . . Flight 10 | . . 10 . . . . . Fastest Speed 37 | 50 80 37 76 70 70 70 70 Average Speed 85 | 78 80 79 95 73 70 70 96 Slowest Speed 280 | 80 80 280 190 83 70 70 190 Overloaded Moves . | . . . . . . . . Propulsion Burnouts . | . . . . . . . . Robots Hopped . | . . . . . . . . Potential Cave-ins . | . . . . . . . . Cave-ins Triggered . | . . . . . . . . Exploration Rate (%) 57 | 4 24 98 52 57 91 60 71 Regions Visited 7 Branch Regions 4 Pre-discovered Areas 1 | . . 1 . . . . . Known Exits Taken 4 | . . . 1 1 1 1 . Unknown Exits Taken 3 | 1 1 1 . . . . . Scrap Searched 3 | . . 1 . 2 . . . Spaces Dug 8 | . . 7 . . . . 1 Terrain Destroyed 92 | . . 9 . 37 . . 46 Melee . | . . . . . . . . Projectile 10 | . . 9 . . . . 1 AOE 82 | . . . . 37 . . 45 Terrain Rammed . | . . . . . . . . Walls Destroyed . | . . . . . . . . Machines Disabled . | . . . . . . . . Actions | -11 -10 -10 -9 -9 -9 -8 -8 --------- Run | Yrd Mat Min Mat Min Exi Min Mat Total 5718 | 161 208 993 1039 420 647 223 2027 Wait 221 | . 6 3 23 . . . 189 Move 4989 | 138 187 941 855 368 643 218 1639 Hop . | . . . . . . . . Pick Up 33 | 4 2 2 10 1 2 . 12 Fast Attach 36 | 7 . 3 9 1 . . 16 Attach 29 | . 1 4 12 . . 2 10 Detach 22 | . 1 6 6 . . 1 8 Swap 43 | . 2 2 14 8 . 1 16 Drop 43 | . . 3 12 4 1 1 22 Fire 163 | 12 9 28 67 25 . . 22 Melee 137 | . . . 31 13 . . 93 Ram 1 | . . 1 . . . . . Kick . | . . . . . . . . Crush . | . . . . . . . . Escape Stasis . | . . . . . . . . Rewire 1 | . . . . . 1 . . Trap . | . . . . . . . . Miscellaneous . | . . . . . . . . Route ------- -11/Scrapyard -10/Materials -10/Mines (discovered 2 exits: *Mat x2) -9/Materials (discovered 3 exits: *Mat / *Min / Sto) -9/Mines (discovered 3 exits: *Mat x2 / *Exi) -9/Exiles (discovered 2 exits: *Min x2) -8/Mines -8/Materials (discovered 3 exits: *Fac x3) History --------- Turn | Location | Event 34 | -11/Scrapyard | Discovered new exit (range 14) 158 | -11/Scrapyard | Entered Materials 198 | -10/Materials | Discovered new exit (range 9) 328 | -10/Materials | Build established: Mutant 346 | -10/Materials | Entered Mines 426 | -10/Mines | Assisted by bots powering up and referring to "LRC-V3" 447 | -10/Mines | Discovered new exit (range 8) 449 | -10/Mines | Learned Materials garrison access intel 587 | -10/Mines | Learned location of Storage (-9) 673 | -10/Mines | Discovered new exit (range 13) 1224 | -10/Mines | Entered Materials 1224 | -9/Materials | Evolved 2 slots: Propulsion x1, Utility x1 1747 | -9/Materials | Lost 3 parts (1p2n) 1965 | -9/Materials | Repaired Sensor Array 2061 | -9/Materials | Identified exit to Mines 2061 | -9/Materials | Identified exit to Storage 2103 | -9/Materials | Discovered new exit (range 5) 2164 | -9/Materials | Build established: Scavenger-Mutant 2219 | -9/Materials | Core integrity fell below 50% 2384 | -9/Materials | Entered Mines 2411 | -9/Mines | Core integrity fell below 20% 2498 | -9/Mines | Discovered new exit (range 3) 2501 | -9/Mines | Identified exit to Materials 2636 | -9/Mines | YI-UF0 nonchalantly dropped a Grenade Launcher on the ground 2656 | -9/Mines | Discovered exit to Materials (range 6) 2702 | -9/Mines | Learned Materials terminal intel 2739 | -9/Mines | Deemed a non-threat by the Exiles lab entrance 2740 | -9/Mines | Discovered new exit (range 5) 2743 | -9/Mines | Identified exit to Exiles 2752 | -9/Mines | Entered Exiles 2762 | -9/Exiles | Discovered new exit (range 15) 2774 | -9/Exiles | Identified exit to Mines 2796 | -9/Exiles | Met 8R-AWN 2809 | -9/Exiles | Met EX-HEX 2852 | -9/Exiles | Met EX-DEC 2871 | -9/Exiles | Visited The Gauntlet 3075 | -9/Exiles | Met EX-BIN 3088 | -9/Exiles | Aligned with FarCom system 3089 | -9/Exiles | Given EX-Vault access code 3110 | -9/Exiles | Opened EX-Vault 3117 | -9/Exiles | Found AWS/Gauss 3122 | -9/Exiles | Found YOLO Cannon 3137 | -9/Exiles | Warned to stay clear of 0b10 Research branches 3194 | -9/Exiles | Discovered exit to Mines (range 14) 3206 | -9/Exiles | Left Exiles lab with YOLO Cannon 3206 | -9/Exiles | Entered Mines 3353 | -8/Mines | Discovered exit to Materials (range 16) 3364 | -8/Mines | Entered Materials 3364 | -8/Materials | Evolved 2 slots: Propulsion x1, Utility x1 3365 | -8/Materials | Loaded intel: 12 terminal locations 3366 | -8/Materials | Loaded intel: 1 garrison access location 3703 | -8/Materials | Lost 3 parts (2n1u) 4424 | -8/Materials | Discovered new exit (range 7) 4784 | -8/Materials | Garrison activated, responded to threat 4826 | -8/Materials | Identified exit to Factory 5467 | -8/Materials | Core integrity fell below 50% 5486 | -8/Materials | Core integrity fell below 20% 5500 | -8/Materials | Destroyed by G-47 Trooper with Particle Gun Last Messages --------------- 05454_ Aluminum Leg destroyed. 05454_ VSS Leg destroyed. 05454_ Critical hit (Blast). 05454_ Knocked back. 05455_ U-05 Engineer builds a Wall. 05459_ Knocked back. 05460_ Acquired VSS Leg. 05463_ Acquired 20 matter. 05464_ U-05 Engineer builds a Wall. 05466_ G-47 Trooper Lgt. Nuclear Core severed. 05469_ G-47 Trooper Aluminum Leg severed. 05472_ Carbon-fiber Leg destroyed. 05474_ Melee Analysis Suite destroyed. 05476_ Slug penetrates Wall. 05476_ G-47 Trooper destroyed. 05477_ U-05 Engineer builds a Wall. 05481_ Melee Analysis Suite destroyed. 05491_ Nuclear Core destroyed. 05493_ Melee Analysis Suite destroyed. 05500_ Acquired Hrd. Medium Armor Plating. Map ----- +----------------------------------------------------+ | ?????????????????????????????????????????????# | | ?????????????????????????????????????????????# | | ??????????????????????????????????????######## | | ??????????????????????????????????????# # | | ??????????????????????????????????????# # | | ??????????